[Event "MČR juniorů a juniorek v rapid šachu 2024"]
[Site "Hotel Fit Fun, Harrachov, Czech Republic"]
[Date "2024.09.21"]
[Round "3.16"]
[White "Sichrovsky Tomas"]
[Black "Boff Vojtech"]
[Result "1-0"]
[TimeControl "20+5"]
[WhiteFideId "23704730"]
[BlackFideId "23733969"]
[WhiteElo "1928"]
[BlackElo "1719"]

1. d4 {[%clk 00:20:08]} {[%emt 00:02:04]} Nf6 {[%clk 00:20:09]} {[%emt
00:00:01]} 2. c4 {[%clk 00:20:12]} {[%emt 00:00:01]} e6 {[%clk 00:20:10]}
{[%emt 00:00:05]} 3. Nc3 {[%clk 00:20:16]} Bb4 {[%clk 00:20:14]} {[%emt
00:00:01]} 4. e3 {[%clk 00:20:20]} O-O {[%clk 00:20:12]} {[%emt 00:00:08]} 5.
Bd3 {[%clk 00:20:24]} d5 {[%clk 00:20:14]} {[%emt 00:00:02]} 6. cxd5 {[%clk
00:20:22]} {[%emt 00:00:07]} Nxd5 {[%clk 00:20:14]} {[%emt 00:00:05]} 7. Nge2
{[%clk 00:20:26]} {[%emt 00:00:02]} Nxc3 {[%clk 00:20:15]} {[%emt 00:00:04]} 8.
bxc3 {[%clk 00:20:30]} {[%emt 00:00:01]} Be7 {[%clk 00:20:18]} {[%emt
00:00:02]} 9. O-O {[%clk 00:20:31]} {[%emt 00:00:03]} c5 {[%clk 00:20:13]}
{[%emt 00:00:10]} 10. Bb2 {[%clk 00:20:15]} {[%emt 00:00:22]} cxd4 {[%clk
00:20:05]} {[%emt 00:00:12]} 11. cxd4 {[%clk 00:20:19]} {[%emt 00:00:02]} Nd7
{[%clk 00:19:51]} {[%emt 00:00:19]} 12. Be4 {[%clk 00:19:55]} {[%emt 00:00:28]}
Nf6 {[%clk 00:19:34]} {[%emt 00:00:22]} 13. Bf3 {[%clk 00:19:59]} {[%emt
00:00:03]} Bd7 {[%clk 00:19:18]} {[%emt 00:00:20]} 14. Qb3 {[%clk 00:18:52]}
{[%emt 00:01:12]} Rb8 {[%clk 00:19:19]} {[%emt 00:00:04]} 15. Rfc1 {[%clk
00:18:27]} {[%emt 00:00:29]} Bc6 {[%clk 00:19:10]} {[%emt 00:00:15]} 16. Bxc6
{[%clk 00:18:31]} {[%emt 00:00:02]} bxc6 {[%clk 00:19:14]} 17. Qc2 {[%clk
00:18:36]} Qd7 {[%clk 00:18:30]} {[%emt 00:00:49]} 18. Nf4 {[%clk 00:18:05]}
{[%emt 00:00:35]} Rfc8 {[%clk 00:17:51]} {[%emt 00:00:44]} 19. Nd3 {[%clk
00:18:07]} {[%emt 00:00:03]} Qd5 {[%clk 00:17:06]} {[%emt 00:00:51]} 20. Rab1
{[%clk 00:15:56]} {[%emt 00:02:16]} a5 {[%clk 00:15:47]} {[%emt 00:01:24]} 21.
Bc3 {[%clk 00:14:26]} {[%emt 00:01:35]} h6 {[%clk 00:14:21]} {[%emt 00:01:31]}
22. Be1 {[%clk 00:14:05]} {[%emt 00:00:25]} Rxb1 {[%clk 00:14:17]} {[%emt
00:00:09]} 23. Qxb1 {[%clk 00:14:01]} {[%emt 00:00:11]} Qd8 {[%clk 00:13:50]}
{[%emt 00:00:31]} 24. Qb7 {[%clk 00:13:23]} {[%emt 00:00:44]} Rc7 {[%clk
00:13:23]} {[%emt 00:00:32]} 25. Qb6 {[%clk 00:13:20]} {[%emt 00:00:05]} Rc8
{[%clk 00:13:22]} {[%emt 00:00:08]} 26. Bxa5 {[%clk 00:11:30]} {[%emt
00:01:56]} Qd5 {[%clk 00:13:25]} {[%emt 00:00:01]} 27. Bb4 {[%clk 00:08:38]}
{[%emt 00:02:57]} c5 {[%clk 00:12:26]} {[%emt 00:01:05]} 28. Bxc5 {[%clk
00:06:05]} {[%emt 00:02:38]} Bxc5 {[%clk 00:12:27]} {[%emt 00:00:03]} 29. Rxc5
{[%clk 00:05:39]} {[%emt 00:00:32]} Rxc5 {[%clk 00:12:30]} {[%emt 00:00:01]} 30.
Qxc5 {[%clk 00:04:59]} {[%emt 00:00:46]} Qxa2 {[%clk 00:12:28]} {[%emt
00:00:06]} 31. Qc8+ {[%clk 00:04:44]} {[%emt 00:00:20]} Kh7 {[%clk 00:12:31]}
{[%emt 00:00:03]} 32. Qc1 {[%clk 00:04:47]} {[%emt 00:00:01]} Ne4 {[%clk
00:12:19]} {[%emt 00:00:17]} 33. h3 {[%clk 00:04:23]} {[%emt 00:00:29]} Qe2
{[%clk 00:12:22]} {[%emt 00:00:02]} 34. Qf1 {[%clk 00:03:44]} {[%emt 00:00:44]}
Qd2 {[%clk 00:11:33]} {[%emt 00:00:53]} 35. Nf4 {[%clk 00:03:03]} {[%emt
00:00:47]} g5 {[%clk 00:11:22]} {[%emt 00:00:16]} 36. Nd3 {[%clk 00:02:53]}
{[%emt 00:00:16]} Kg7 {[%clk 00:11:04]} {[%emt 00:00:22]} 37. Ne5 {[%clk
00:02:35]} {[%emt 00:00:24]} f6 {[%clk 00:10:21]} {[%emt 00:00:47]} 38. Nf3
{[%clk 00:02:32]} {[%emt 00:00:08]} Qc2 {[%clk 00:10:08]} {[%emt 00:00:18]} 39.
Qe1 {[%clk 00:02:35]} {[%emt 00:00:02]} Qa2 {[%clk 00:09:40]} {[%emt 00:00:33]}
40. Nh2 {[%clk 00:02:19]} {[%emt 00:00:21]} Qc2 {[%clk 00:09:03]} {[%emt
00:00:42]} 41. Nf1 {[%clk 00:01:56]} {[%emt 00:00:29]} f5 {[%clk 00:08:15]}
{[%emt 00:00:52]} 42. f3 {[%clk 00:01:42]} {[%emt 00:00:19]} Nc3 {[%clk
00:08:07]} {[%emt 00:00:13]} 43. Qd2 {[%clk 00:01:27]} {[%emt 00:00:21]} Qb3
{[%clk 00:07:37]} {[%emt 00:00:34]} 44. Kh2 {[%clk 00:00:41]} {[%emt 00:00:51]}
Nd5 {[%clk 00:07:34]} {[%emt 00:00:09]} 45. Qc1 {[%clk 00:00:27]} {[%emt
00:00:19]} Qb8+ {[%clk 00:07:18]} {[%emt 00:00:21]} 46. Kg1 {[%clk 00:00:27]}
{[%emt 00:00:05]} Qb3 {[%clk 00:07:08]} {[%emt 00:00:14]} 47. Qd2 {[%clk
00:00:27]} {[%emt 00:00:06]} Kf6 {[%clk 00:07:01]} {[%emt 00:00:11]} 48. e4
{[%clk 00:00:27]} {[%emt 00:00:06]} fxe4 {[%clk 00:06:53]} {[%emt 00:00:13]} 49.
fxe4 {[%clk 00:00:31]} {[%emt 00:00:01]} Nf4 {[%clk 00:06:48]} {[%emt
00:00:10]} 50. Qf2 {[%clk 00:00:27]} {[%emt 00:00:06]} Kg6 {[%clk 00:06:45]}
{[%emt 00:00:10]} 51. Ng3 {[%clk 00:00:22]} {[%emt 00:00:10]} Qd1+ {[%clk
00:06:37]} {[%emt 00:00:13]} 52. Kh2 {[%clk 00:00:24]} {[%emt 00:00:04]} Nd3
{[%clk 00:05:45]} {[%emt 00:00:57]} 53. Qe3 {[%clk 00:00:22]} {[%emt 00:00:07]}
Qc2 {[%clk 00:05:04]} {[%emt 00:00:45]} 54. e5 {[%clk 00:00:17]} {[%emt
00:00:10]} Nf4 {[%clk 00:05:02]} {[%emt 00:00:07]} 55. Qf3 {[%clk 00:00:13]}
{[%emt 00:00:09]} Qd2 {[%clk 00:04:54]} {[%emt 00:00:12]} 56. Qe4+ {[%clk
00:00:17]} {[%emt 00:00:02]} Kg7 {[%clk 00:04:53]} {[%emt 00:00:06]} 57. Qb7+
{[%clk 00:00:18]} {[%emt 00:00:04]} Kg6 {[%clk 00:04:52]} {[%emt 00:00:06]} 58.
Qb1+ {[%clk 00:00:22]} Kg7 {[%clk 00:04:55]} {[%emt 00:00:03]} 59. Qe4 {[%clk
00:00:25]} {[%emt 00:00:02]} Qf2 {[%clk 00:04:41]} {[%emt 00:00:19]} 60. h4
{[%clk 00:00:20]} {[%emt 00:00:11]} gxh4 {[%clk 00:04:22]} {[%emt 00:00:24]} 61.
Qb7+ {[%clk 00:00:23]} {[%emt 00:00:02]} Kg6 {[%clk 00:04:20]} {[%emt
00:00:07]} 62. Qe4+ {[%clk 00:00:26]} {[%emt 00:00:01]} Kf7 {[%clk 00:04:15]}
{[%emt 00:00:10]} 63. Qh7+ {[%clk 00:00:28]} {[%emt 00:00:04]} Ke8 {[%clk
00:04:15]} {[%emt 00:00:04]} 64. Qh8+ {[%clk 00:00:30]} {[%emt 00:00:04]} Kd7
{[%clk 00:04:15]} {[%emt 00:00:04]} 65. Qg7+ {[%clk 00:00:34]} {[%emt
00:00:02]} Kc6 {[%clk 00:04:17]} {[%emt 00:00:02]} 66. Ne4 {[%clk 00:00:33]}
{[%emt 00:00:06]} Qxd4 {[%clk 00:03:48]} {[%emt 00:00:35]} 67. Nf6 {[%clk
00:00:27]} {[%emt 00:00:10]} Qxe5 {[%clk 00:02:52]} {[%emt 00:01:01]} 68. Qd7+
{[%clk 00:00:32]} Kc5 {[%clk 00:02:46]} {[%emt 00:00:11]} 69. Qa7+ {[%clk
00:00:31]} {[%emt 00:00:06]} Kc4 {[%clk 00:02:35]} {[%emt 00:00:14]} 70. Qa4+
{[%clk 00:00:34]} {[%emt 00:00:03]} Kd3 {[%clk 00:02:30]} {[%emt 00:00:10]} 71.
Qd1+ {[%clk 00:00:37]} {[%emt 00:00:03]} Kc4 {[%clk 00:02:22]} {[%emt
00:00:13]} 72. Qa4+ {[%clk 00:00:39]} {[%emt 00:00:02]} Kd3 {[%clk 00:01:25]}
{[%emt 00:01:02]} 73. Ng4 {[%clk 00:00:28]} {[%emt 00:00:17]} Qe4 {[%clk
00:00:57]} {[%emt 00:00:32]} 74. Nf2+ {[%clk 00:00:31]} {[%emt 00:00:03]} 1-0



[ePGN "0.1;DGT LiveChess/2.2.6"]

[Event "MČR juniorů a juniorek v rapid šachu 2024"]
[Site "Hotel Fit Fun, Harrachov, Czech Republic"]
[Date "2024.09.21"]
[Round "3.17"]
[White "Andrle Filip"]
[Black "Stejskal Michal"]
[Result "0-1"]
[TimeControl "20+5"]
[WhiteFideId "23718749"]
[BlackFideId "398195"]
[WhiteElo "1789"]
[BlackElo "1926"]

1. e4 {[%clk 00:20:08]} {[%emt 00:00:02]} e5 {[%clk 00:20:08]} {[%emt
00:00:02]} 2. Nf3 {[%clk 00:20:10]} {[%emt 00:00:03]} Nc6 {[%clk 00:20:12]} 3.
Bc4 {[%clk 00:20:13]} {[%emt 00:00:02]} f5 {[%clk 00:20:15]} {[%emt 00:00:03]}
4. d3 {[%clk 00:20:09]} {[%emt 00:00:08]} Nf6 {[%clk 00:19:32]} {[%emt
00:00:49]} 5. Nc3 {[%clk 00:19:57]} {[%emt 00:00:17]} Bc5 {[%clk 00:19:32]}
{[%emt 00:00:06]} 6. O-O {[%clk 00:16:34]} {[%emt 00:03:27]} d6 {[%clk
00:19:26]} {[%emt 00:00:12]} 7. a3 {[%clk 00:16:30]} {[%emt 00:00:09]} f4
{[%clk 00:19:03]} {[%emt 00:00:27]} 8. Ng5 {[%clk 00:15:25]} {[%emt 00:01:10]}
Ng4 {[%clk 00:18:44]} {[%emt 00:00:24]} 9. Ne6 {[%clk 00:13:26]} {[%emt
00:02:05]} Qh4 {[%clk 00:18:03]} {[%emt 00:00:45]} 10. h3 {[%clk 00:11:34]}
{[%emt 00:01:56]} Bxe6 {[%clk 00:17:08]} {[%emt 00:01:02]} 11. Bxe6 {[%clk
00:10:44]} {[%emt 00:00:54]} Nxf2 {[%clk 00:17:09]} {[%emt 00:00:04]} 12. Rxf2
{[%clk 00:09:48]} {[%emt 00:01:01]} Qxf2+ {[%clk 00:17:12]} {[%emt 00:00:03]}
13. Kh1 {[%clk 00:09:45]} {[%emt 00:00:08]} Nd4 {[%clk 00:16:06]} {[%emt
00:01:11]} 0-1



[ePGN "0.1;DGT LiveChess/2.2.6"]

[Event "MČR juniorů a juniorek v rapid šachu 2024"]
[Site "Hotel Fit Fun, Harrachov, Czech Republic"]
[Date "2024.09.21"]
[Round "3.18"]
[White "Nagyova Daniela"]
[Black "Zadrapova Amalie"]
[Result "0-1"]
[TimeControl "20+5"]
[WhiteFideId "390070"]
[BlackFideId "23710276"]
[WhiteElo "1787"]
[BlackElo "1891"]

1. e4 {[%clk 00:20:06]} {[%emt 00:00:06]} c5 {[%clk 00:20:09]} 2. Nf3 {[%clk
00:20:09]} {[%emt 00:00:02]} d6 {[%clk 00:20:12]} {[%emt 00:00:02]} 3. d4
{[%clk 00:20:11]} {[%emt 00:00:03]} cxd4 {[%clk 00:20:15]} {[%emt 00:00:02]} 4.
Nxd4 {[%clk 00:20:14]} {[%emt 00:00:02]} Nf6 {[%clk 00:20:18]} {[%emt
00:00:02]} 5. Nc3 {[%clk 00:20:13]} {[%emt 00:00:06]} a6 {[%clk 00:20:20]}
{[%emt 00:00:03]} 6. Be2 {[%clk 00:20:04]} {[%emt 00:00:14]} e5 {[%clk
00:20:21]} {[%emt 00:00:03]} 7. Nb3 {[%clk 00:20:06]} {[%emt 00:00:04]} Be7
{[%clk 00:20:22]} {[%emt 00:00:04]} 8. O-O {[%clk 00:19:45]} {[%emt 00:00:26]}
O-O {[%clk 00:20:24]} {[%emt 00:00:03]} 9. Be3 {[%clk 00:19:46]} {[%emt
00:00:04]} Be6 {[%clk 00:19:47]} {[%emt 00:00:42]} 10. a4 {[%clk 00:18:12]}
{[%emt 00:01:39]} b6 {[%clk 00:19:02]} {[%emt 00:00:50]} 11. a5 {[%clk
00:17:03]} {[%emt 00:01:14]} b5 {[%clk 00:18:27]} {[%emt 00:00:41]} 12. Qd2
{[%clk 00:15:14]} {[%emt 00:01:54]} Nbd7 {[%clk 00:17:37]} {[%emt 00:00:55]} 13.
f3 {[%clk 00:14:24]} {[%emt 00:00:54]} Rc8 {[%clk 00:16:55]} {[%emt 00:00:47]}
14. Nc1 {[%clk 00:13:07]} {[%emt 00:01:22]} Qc7 {[%clk 00:15:17]} {[%emt
00:01:43]} 15. Nd3 {[%clk 00:12:13]} {[%emt 00:00:59]} d5 {[%clk 00:13:56]}
{[%emt 00:01:26]} 16. exd5 {[%clk 00:11:57]} {[%emt 00:00:21]} Nxd5 {[%clk
00:13:53]} {[%emt 00:00:09]} 17. Nxd5 {[%clk 00:11:17]} {[%emt 00:00:45]} Bxd5
{[%clk 00:13:54]} {[%emt 00:00:04]} 18. c3 {[%clk 00:10:51]} {[%emt 00:00:31]}
Bc4 {[%clk 00:12:45]} {[%emt 00:01:14]} 19. Nf2 {[%clk 00:09:16]} {[%emt
00:01:39]} Be6 {[%clk 00:11:06]} {[%emt 00:01:44]} 20. Ne4 {[%clk 00:08:03]}
{[%emt 00:01:18]} h6 {[%clk 00:10:39]} {[%emt 00:00:33]} 21. Rfd1 {[%clk
00:06:33]} {[%emt 00:01:35]} Rfd8 {[%clk 00:10:14]} {[%emt 00:00:29]} 22. Qe1
{[%clk 00:05:38]} {[%emt 00:01:01]} f5 {[%clk 00:09:46]} {[%emt 00:00:33]} 23.
Nd2 {[%clk 00:05:04]} {[%emt 00:00:39]} Bc5 {[%clk 00:08:30]} {[%emt 00:01:22]}
24. Bxc5 {[%clk 00:04:24]} {[%emt 00:00:45]} Nxc5 {[%clk 00:08:31]} {[%emt
00:00:04]} 25. c4 {[%clk 00:03:07]} {[%emt 00:01:21]} b4 {[%clk 00:06:43]}
{[%emt 00:01:53]} 26. Nf1 {[%clk 00:01:04]} {[%emt 00:02:08]} Rxd1 {[%clk
00:06:29]} {[%emt 00:00:20]} 27. Qxd1 {[%clk 00:00:38]} {[%emt 00:00:31]} Rd8
{[%clk 00:06:01]} {[%emt 00:00:32]} 28. Qc2 {[%clk 00:00:35]} {[%emt 00:00:08]}
e4 {[%clk 00:05:13]} {[%emt 00:00:53]} 29. fxe4 {[%clk 00:00:22]} {[%emt
00:00:18]} Nxe4 {[%clk 00:05:00]} {[%emt 00:00:17]} 30. c5 {[%clk 00:00:14]}
{[%emt 00:00:14]} b3 {[%clk 00:04:26]} {[%emt 00:00:39]} 31. Qc1 {[%clk
00:00:10]} {[%emt 00:00:09]} Qe5 {[%clk 00:03:37]} {[%emt 00:00:54]} 32. Ne3
{[%clk 00:00:08]} {[%emt 00:00:08]} Nxc5 {[%clk 00:02:46]} {[%emt 00:00:55]} 33.
Bc4 {[%clk 00:00:07]} {[%emt 00:00:06]} Re8 {[%clk 00:01:47]} {[%emt 00:01:04]}
34. Bxe6+ {[%clk 00:00:08]} {[%emt 00:00:04]} Rxe6 {[%clk 00:01:48]} {[%emt
00:00:04]} 35. Nc4 {[%clk 00:00:08]} {[%emt 00:00:05]} Qd4+ {[%clk 00:01:46]}
{[%emt 00:00:07]} 36. Kh1 {[%clk 00:00:10]} {[%emt 00:00:04]} Nd3 {[%clk
00:01:45]} {[%emt 00:00:06]} 37. Qd1 {[%clk 00:00:07]} {[%emt 00:00:07]} Nf2+
{[%emt 00:00:02]} 0-1



[ePGN "0.1;DGT LiveChess/2.2.6"]

[Event "MČR juniorů a juniorek v rapid šachu 2024"]
[Site "Hotel Fit Fun, Harrachov, Czech Republic"]
[Date "2024.09.21"]
[Round "3.19"]
[White "Budil Vaclav"]
[Black "Koranda Kosma"]
[Result "0-1"]
[TimeControl "20+5"]
[WhiteFideId "23776226"]
[BlackFideId "23772948"]
[WhiteElo "1697"]
[BlackElo "1884"]

1. e4 {[%clk 00:20:08]} {[%emt 00:06:33]} e5 {[%clk 00:20:09]} {[%emt
00:00:02]} 2. Nc3 {[%clk 00:20:11]} {[%emt 00:00:01]} Nf6 {[%clk 00:20:12]}
{[%emt 00:00:03]} 3. f4 {[%clk 00:20:14]} d5 {[%clk 00:20:14]} {[%emt
00:00:02]} 4. fxe5 {[%clk 00:20:17]} {[%emt 00:00:03]} Nxe4 {[%clk 00:20:15]}
{[%emt 00:00:04]} 5. Qf3 {[%clk 00:20:20]} {[%emt 00:00:02]} f5 {[%clk
00:18:41]} {[%emt 00:01:39]} 6. d3 {[%clk 00:20:23]} {[%emt 00:00:02]} Nxc3
{[%clk 00:17:57]} {[%emt 00:00:49]} 7. bxc3 {[%clk 00:20:26]} {[%emt 00:00:02]}
d4 {[%clk 00:16:52]} {[%emt 00:01:09]} 8. Qg3 {[%clk 00:20:29]} {[%emt
00:00:02]} Nc6 {[%clk 00:15:30]} {[%emt 00:01:27]} 9. Be2 {[%clk 00:20:29]}
{[%emt 00:00:06]} Be6 {[%clk 00:14:43]} {[%emt 00:00:52]} 10. Nf3 {[%clk
00:19:38]} {[%emt 00:00:56]} Qd7 {[%clk 00:14:11]} {[%emt 00:00:37]} 11. O-O
{[%clk 00:16:31]} {[%emt 00:03:12]} Bc5 {[%clk 00:13:29]} {[%emt 00:00:46]} 12.
Kh1 {[%clk 00:15:48]} {[%emt 00:00:49]} dxc3 {[%clk 00:08:50]} {[%emt
00:04:44]} 13. Ng5 {[%clk 00:15:27]} {[%emt 00:00:26]} O-O-O {[%clk 00:08:20]}
{[%emt 00:00:36]} 14. Nxe6 {[%clk 00:15:08]} {[%emt 00:00:24]} Qxe6 {[%clk
00:08:15]} {[%emt 00:00:09]} 15. Rxf5 {[%clk 00:14:18]} {[%emt 00:00:55]} Nd4
{[%clk 00:07:25]} {[%emt 00:00:55]} 16. Rf2 {[%clk 00:13:36]} {[%emt 00:00:46]}
h5 {[%clk 00:04:42]} {[%emt 00:02:48]} 17. Bf3 {[%clk 00:07:15]} {[%emt
00:06:27]} Nf5 {[%clk 00:03:53]} {[%emt 00:00:54]} 18. Bxb7+ {[%clk 00:06:22]}
{[%emt 00:00:58]} Kb8 {[%clk 00:02:15]} {[%emt 00:01:42]} 19. Rxf5 {[%clk
00:06:09]} {[%emt 00:00:19]} Qxf5 {[%clk 00:02:05]} {[%emt 00:00:16]} 20. Bf3
{[%clk 00:06:03]} {[%emt 00:00:09]} g5 {[%clk 00:01:33]} {[%emt 00:00:37]} 21.
Rb1+ {[%clk 00:05:50]} {[%emt 00:00:18]} Bb6 {[%clk 00:01:30]} {[%emt
00:00:09]} 22. Qxg5 {[%clk 00:05:05]} {[%emt 00:00:50]} Qxg5 {[%clk 00:01:30]}
{[%emt 00:00:05]} 23. Bxg5 {[%clk 00:05:09]} {[%emt 00:00:01]} Rde8 {[%clk
00:01:26]} {[%emt 00:00:09]} 24. Bf6 {[%clk 00:05:05]} {[%emt 00:00:08]} Rh6
{[%clk 00:01:15]} {[%emt 00:00:16]} 25. Rb3 {[%clk 00:04:45]} {[%emt 00:00:25]}
Rxf6 {[%clk 00:01:16]} {[%emt 00:00:04]} 26. Rxc3 {[%clk 00:04:28]} {[%emt
00:00:22]} Rxe5 {[%clk 00:01:18]} {[%emt 00:00:03]} 27. h3 {[%clk 00:04:32]}
Re1+ {[%clk 00:01:21]} {[%emt 00:00:03]} 28. Kh2 {[%clk 00:04:36]} {[%emt
00:00:01]} Rg6 {[%clk 00:01:19]} {[%emt 00:00:08]} 29. Bxh5 {[%clk 00:04:32]}
{[%emt 00:00:09]} Bg1+ {[%clk 00:01:22]} {[%emt 00:00:02]} 30. Kh1 {[%clk
00:04:31]} {[%emt 00:00:06]} Bf2+ {[%clk 00:01:20]} {[%emt 00:00:07]} 31. Kh2
{[%clk 00:04:34]} {[%emt 00:00:02]} Bg3# {[%emt 00:00:02]} 0-1



[ePGN "0.1;DGT LiveChess/2.2.6"]

[Event "MČR juniorů a juniorek v rapid šachu 2024"]
[Site "Hotel Fit Fun, Harrachov, Czech Republic"]
[Date "2024.09.21"]
[Round "3.2"]
[White "Steinbauer Sebastian"]
[Black "Pejrimovsky Tadeas Rubel"]
[Result "1-0"]
[TimeControl "20+5"]
[WhiteFideId "399272"]
[BlackFideId "23709537"]
[WhiteElo "2062"]
[BlackElo "1895"]

1. e4 {[%clk 00:20:08]} {[%emt 00:00:02]} c5 {[%clk 00:20:09]} {[%emt
00:00:02]} 2. d4 {[%clk 00:20:11]} {[%emt 00:00:02]} cxd4 {[%clk 00:20:12]}
{[%emt 00:00:03]} 3. c3 {[%clk 00:20:15]} d3 {[%clk 00:19:37]} {[%emt
00:00:40]} 4. Bxd3 {[%clk 00:20:17]} {[%emt 00:00:02]} d6 {[%clk 00:19:34]}
{[%emt 00:00:07]} 5. Nf3 {[%clk 00:20:21]} {[%emt 00:00:02]} Nf6 {[%clk
00:19:37]} {[%emt 00:00:02]} 6. O-O {[%clk 00:20:22]} {[%emt 00:00:04]} e6
{[%clk 00:19:40]} {[%emt 00:00:02]} 7. Bg5 {[%clk 00:20:25]} {[%emt 00:00:01]}
Be7 {[%clk 00:19:44]} {[%emt 00:00:02]} 8. Qe2 {[%clk 00:20:29]} a6 {[%clk
00:19:40]} {[%emt 00:00:09]} 9. Rd1 {[%clk 00:20:26]} {[%emt 00:00:07]} Qc7
{[%clk 00:19:38]} {[%emt 00:00:06]} 10. e5 {[%clk 00:19:46]} {[%emt 00:00:46]}
dxe5 {[%clk 00:19:31]} {[%emt 00:00:12]} 11. Nxe5 {[%clk 00:19:49]} {[%emt
00:00:02]} Nc6 {[%clk 00:19:11]} {[%emt 00:00:25]} 12. Nxc6 {[%clk 00:19:14]}
{[%emt 00:00:40]} Qxc6 {[%clk 00:19:13]} {[%emt 00:00:04]} 13. Nd2 {[%clk
00:19:11]} {[%emt 00:00:08]} h6 {[%clk 00:18:36]} {[%emt 00:00:42]} 14. Bh4
{[%clk 00:19:07]} {[%emt 00:00:07]} g5 {[%clk 00:16:03]} {[%emt 00:02:40]} 15.
Bg3 {[%clk 00:19:09]} {[%emt 00:00:04]} Bd7 {[%clk 00:15:53]} {[%emt 00:00:15]}
16. Nc4 {[%clk 00:18:50]} {[%emt 00:00:24]} Qc8 {[%clk 00:12:03]} {[%emt
00:03:55]} 17. Nb6 {[%clk 00:18:16]} {[%emt 00:00:39]} Qd8 {[%clk 00:11:42]}
{[%emt 00:00:26]} 18. Nxa8 {[%clk 00:18:13]} {[%emt 00:00:09]} Qxa8 {[%clk
00:11:45]} {[%emt 00:00:02]} 19. Be5 {[%clk 00:17:55]} {[%emt 00:00:23]} Bc6
{[%clk 00:10:52]} {[%emt 00:00:58]} 20. Bxf6 {[%clk 00:17:44]} {[%emt
00:00:16]} Bxf6 {[%clk 00:10:55]} {[%emt 00:00:02]} 21. Be4 {[%clk 00:17:46]}
{[%emt 00:00:03]} Bxe4 {[%clk 00:10:10]} {[%emt 00:00:49]} 22. Qxe4 {[%clk
00:17:48]} {[%emt 00:00:02]} O-O {[%clk 00:10:13]} {[%emt 00:00:02]} 23. Rd7
{[%clk 00:17:50]} {[%emt 00:00:03]} Rd8 {[%clk 00:09:32]} {[%emt 00:00:46]} 24.
Rad1 {[%clk 00:17:42]} {[%emt 00:00:13]} Rxd7 {[%clk 00:09:32]} {[%emt
00:00:04]} 25. Rxd7 {[%clk 00:17:46]} {[%emt 00:00:02]} Qc8 {[%clk 00:08:43]}
{[%emt 00:00:54]} 26. Qxb7 {[%clk 00:15:50]} {[%emt 00:02:01]} Qc5 {[%clk
00:08:38]} {[%emt 00:00:10]} 27. Qb8+ {[%clk 00:15:42]} {[%emt 00:00:11]} Kg7
{[%clk 00:08:30]} {[%emt 00:00:15]} 28. Qe8 {[%clk 00:15:45]} {[%emt 00:00:02]}
Qf8 {[%clk 00:08:28]} {[%emt 00:00:07]} 29. Qxf8+ {[%clk 00:15:43]} {[%emt
00:00:07]} Kxf8 {[%clk 00:08:31]} {[%emt 00:00:02]} 30. Ra7 {[%clk 00:15:46]}
{[%emt 00:00:02]} 1-0



[ePGN "0.1;DGT LiveChess/2.2.6"]

[Event "MČR juniorů a juniorek v rapid šachu 2024"]
[Site "Hotel Fit Fun, Harrachov, Czech Republic"]
[Date "2024.09.21"]
[Round "3.20"]
[White "Pejrimovska Viola Ruby"]
[Black "Pes Matej"]
[Result "1-0"]
[TimeControl "20+5"]
[WhiteFideId "23709529"]
[BlackFideId "23766816"]
[WhiteElo "1876"]
[BlackElo "1697"]

1. e4 {[%clk 00:20:09]} {[%emt 00:01:29]} c5 {[%clk 00:20:07]} {[%emt
00:00:03]} 2. b4 {[%clk 00:20:13]} {[%emt 00:00:01]} cxb4 {[%clk 00:20:06]}
{[%emt 00:00:06]} 3. a3 {[%clk 00:20:16]} {[%emt 00:00:02]} d5 {[%clk
00:20:09]} {[%emt 00:00:02]} 4. exd5 {[%clk 00:20:20]} {[%emt 00:00:02]} Nf6
{[%clk 00:19:47]} {[%emt 00:00:27]} 5. axb4 {[%clk 00:19:46]} {[%emt 00:00:38]}
Nxd5 {[%clk 00:19:47]} {[%emt 00:00:05]} 6. c3 {[%clk 00:18:12]} {[%emt
00:01:39]} e5 {[%clk 00:19:35]} {[%emt 00:00:17]} 7. Nf3 {[%clk 00:17:41]}
{[%emt 00:00:36]} Bg4 {[%clk 00:18:22]} {[%emt 00:01:17]} 8. Be2 {[%clk
00:17:32]} {[%emt 00:00:15]} Bd6 {[%clk 00:18:10]} {[%emt 00:00:17]} 9. O-O
{[%clk 00:14:23]} {[%emt 00:03:15]} Nf4 {[%clk 00:16:41]} {[%emt 00:01:33]} 10.
d4 {[%clk 00:13:18]} {[%emt 00:01:10]} e4 {[%clk 00:15:34]} {[%emt 00:01:12]}
11. Bxf4 {[%clk 00:13:09]} {[%emt 00:00:13]} Bxf4 {[%clk 00:15:19]} {[%emt
00:00:20]} 12. Ne5 {[%clk 00:12:23]} {[%emt 00:00:51]} Bxe2 {[%clk 00:13:33]}
{[%emt 00:01:52]} 13. Qxe2 {[%clk 00:12:22]} {[%emt 00:00:05]} f5 {[%clk
00:11:53]} {[%emt 00:01:44]} 14. Qh5+ {[%clk 00:11:57]} {[%emt 00:00:32]} Ke7
{[%clk 00:10:51]} {[%emt 00:01:07]} 15. Qf7+ {[%clk 00:11:06]} {[%emt
00:00:56]} Kd6 {[%clk 00:10:53]} {[%emt 00:00:03]} 16. Nc4+ {[%clk 00:09:09]}
{[%emt 00:02:02]} Kc6 {[%clk 00:10:05]} {[%emt 00:00:53]} 17. Na5+ {[%clk
00:09:11]} {[%emt 00:00:03]} 1-0



[ePGN "0.1;DGT LiveChess/2.2.6"]